bitfinex/quotes_BTCUSD_20250320
["timestamp","ask_amount","ask_price","bid_price","bid_amount"]
[1742498478082,2e-07,84300.0,84299.0,2.10757457]
[1742498478835,0.00058482,84311.0,84310.0,0.349079]
[1742498479033,0.00058482,84311.0,84310.0,0.61635488]
[1742498479232,0.00058482,84311.0,84310.0,0.96958748]
[1742498480148,0.00868955,84316.0,84315.0,0.349065]
[1742498480379,0.00881424,84316.0,84315.0,0.56118088]
[1742498480642,0.00881424,84316.0,84315.0,0.97368691]
[1742498481095,0.00881424,84316.0,84315.0,0.98263625]
[1742498481549,0.00881424,84316.0,84315.0,0.98863625]
[1742498481805,0.00881424,84316.0,84315.0,1.68863625]
[1742498482273,0.00881424,84316.0,84315.0,1.68263625]
[1742498482519,0.00881424,84316.0,84315.0,1.68863625]
[1742498482768,0.00881424,84316.0,84315.0,2.25895625]
[1742498485704,0.00881424,84316.0,84315.0,2.25295625]
[1742498485909,0.00881424,84316.0,84315.0,2.24695625]
[1742498487130,0.00435124,84316.0,84315.0,1.54695625]
[1742498487370,2.4e-07,84316.0,84315.0,1.61928364]
[1742498487720,2.4e-07,84316.0,84315.0,1.63128364]
[1742498487836,0.00016924,84316.0,84315.0,1.63128364]
[1742498488041,0.00016924,84316.0,84315.0,1.62528364]
[1742498488242,0.00016924,84316.0,84315.0,1.61928364]
[1742498488451,0.00016924,84316.0,84315.0,1.63128364]
[1742498488862,0.00016924,84316.0,84315.0,1.62528364]
[1742498489266,0.00016924,84316.0,84315.0,1.63128364]
[1742498489881,0.0004,84332.0,84316.0,0.67593964]
[1742498490078,0.26384174,84347.0,84344.0,0.1]
[1742498490291,0.26384174,84347.0,84345.0,0.82879103]
[1742498490292,0.00928171,84346.0,84345.0,0.82879103]
[1742498490486,0.00928171,84346.0,84345.0,1.06591003]
[1742498490689,0.00928171,84346.0,84345.0,1.05405403]
[1742498490889,0.00928171,84346.0,84345.0,0.81693503]
[1742498491115,0.00928171,84346.0,84345.0,1.05405603]
[1742498491516,0.00012457,84347.0,84346.0,0.248973]
[1742498491717,0.00012457,84347.0,84346.0,0.72178063]
[1742498492834,0.00012457,84347.0,84346.0,0.47280763]
[1742498493028,0.23723957,84347.0,84346.0,0.47280763]
[1742498493234,0.00943698,84347.0,84346.0,0.47280763]
[1742498493431,0.00943698,84347.0,84346.0,0.70992563]
[1742498493619,0.00012457,84347.0,84346.0,0.70992563]
[1742498493821,0.00943698,84347.0,84346.0,0.71392563]
[1742498494038,0.00012457,84347.0,84346.0,0.71792563]
[1742498494247,0.00943698,84347.0,84346.0,0.47680763]
[1742498494491,0.24655198,84347.0,84346.0,0.25269503]
[1742498494688,0.00943698,84347.0,84346.0,0.25969503]
[1742498495103,0.00943698,84347.0,84346.0,0.52089473]
[1742498495309,0.00943698,84347.0,84346.0,1.30885997]
[1742498495481,0.00012457,84347.0,84346.0,1.30585997]
[1742498495681,0.00012457,84347.0,84346.0,1.31085997]
[1742498497087,0.00012457,84347.0,84346.0,1.30885997]
[1742498497294,0.00012457,84347.0,84346.0,1.31385997]
[1742498497489,0.00012457,84347.0,84346.0,1.30585997]
[1742498498061,0.00012457,84347.0,84346.0,1.31585997]
[1742498498466,0.00012457,84347.0,84346.0,1.31085997]
[1742498498878,0.00012457,84347.0,84346.0,1.31685997]
[1742498499137,0.00012457,84347.0,84346.0,1.30231912]
[1742498499555,0.00029357,84347.0,84346.0,1.30231912]
[1742498502843,0.00029357,84347.0,84346.0,1.16919912]
[1742498503043,0.00029357,84347.0,84346.0,1.30231912]
[1742498503341,0.00029357,84347.0,84346.0,1.29731912]
[1742498503512,0.00029357,84347.0,84346.0,1.30231912]
[1742498503660,0.00029357,84347.0,84346.0,1.29631912]
[1742498503862,0.00029357,84347.0,84346.0,1.30231912]
[1742498504691,0.00029357,84347.0,84346.0,1.29731912]
[1742498504886,0.00029357,84347.0,84346.0,1.29131912]
[1742498505088,0.00029357,84347.0,84346.0,1.30031912]
[1742498507934,0.23740857,84347.0,84346.0,0.56499352]
[1742498508091,0.33609138,84347.0,84346.0,0.69807352]
[1742498508295,0.33609138,84347.0,84346.0,0.67399182]
[1742498509119,0.63609138,84347.0,84346.0,0.67399182]
[1742498509466,0.63609138,84347.0,84346.0,0.66999182]
[1742498509936,0.63609138,84347.0,84346.0,0.66499182]
[1742498510140,0.63609138,84347.0,84346.0,0.13308]
[1742498510319,0.63609138,84347.0,84346.0,0.13508]
[1742498510747,0.30962138,84347.0,84346.0,0.25665503]
[1742498510964,0.30962138,84347.0,84346.0,0.25465503]
[1742498511323,0.30962138,84347.0,84346.0,0.25265503]
[1742498511930,0.30962138,84347.0,84346.0,0.50162803]
[1742498512519,0.30029357,84347.0,84346.0,0.50162803]
[1742498512722,0.30962138,84347.0,84346.0,0.25265503]
[1742498513126,0.30962138,84347.0,84346.0,0.25465503]
[1742498513331,0.30962138,84347.0,84346.0,0.25665503]
[1742498513498,0.30962138,84347.0,84346.0,0.25465503]
[1742498513741,0.30962138,84347.0,84346.0,0.12157503]
[1742498513742,0.68419138,84347.0,84346.0,0.12157503]
[1742498513960,0.68419138,84347.0,84346.0,0.12457503]
[1742498514503,0.68419138,84347.0,84346.0,0.12157503]
[1742498514709,0.68419138,84347.0,84346.0,0.002]
[1742498515725,0.248973,84346.0,84345.0,0.56424]
[1742498516324,0.25830081,84346.0,84345.0,0.56424]
[1742498516549,0.33700081,84346.0,84345.0,0.56424]
[1742498520723,0.33700081,84346.0,84345.0,0.68381503]
[1742498522042,0.33700081,84346.0,84345.0,0.68415303]
[1742498522247,0.08802781,84346.0,84345.0,0.68415303]
[1742498522444,0.24644581,84346.0,84345.0,0.68415303]
[1742498522793,0.00932781,84346.0,84345.0,0.93313003]
[1742498522968,0.00029357,84347.0,84346.0,0.011855]
[1742498523109,0.00029357,84347.0,84346.0,0.36854803]
[1742498523742,0.00959143,84347.0,84346.0,0.36854803]
[1742498524160,0.00029357,84347.0,84346.0,0.36854803]
[1742498524369,0.00959143,84347.0,84346.0,0.36854803]
[1742498524613,0.25856143,84347.0,84346.0,0.11957503]
[1742498525421,0.25856143,84347.0,84346.0,0.12257503]
[1742498525654,0.25856143,84347.0,84346.0,0.12457503]
[1742498525979,0.25856143,84347.0,84346.0,0.12257503]
[1742498526566,0.25856143,84347.0,84346.0,0.11957503]
[1742498526791,0.55856143,84347.0,84346.0,0.11957503]
[1742498527016,0.63566143,84347.0,84346.0,0.11957503]
[1742498527924,0.63566143,84347.0,84345.0,0.564578]
[1742498527925,0.548973,84346.0,84345.0,0.000338]
[1742498528132,0.627573,84346.0,84345.0,0.000338]
[1742498528748,0.627573,84346.0,84327.0,0.1]
[1742498528749,0.62501586,84346.0,84327.0,0.1]
[1742498528951,0.549053,84319.0,84316.0,0.13312]
[1742498529369,0.55835086,84319.0,84316.0,0.13312]
[1742498529793,0.549056,84318.0,84317.0,0.10623484]
[1742498530474,0.55835386,84318.0,84317.0,0.25011987]
[1742498530680,0.30929786,84318.0,84317.0,0.25011987]
[1742498530904,0.00929786,84318.0,84317.0,0.62043987]
[1742498531127,0.00929786,84318.0,84317.0,0.63233987]
[1742498531333,0.3,84320.0,84319.0,0.237194]
[1742498531539,0.3,84320.0,84319.0,0.45676903]
[1742498531695,0.3,84320.0,84319.0,0.46862803]
[1742498532105,0.549042,84324.0,84320.0,0.23719]
[1742498532287,0.537186,84322.0,84321.0,0.11957503]
[1742498532498,0.3,84322.0,84321.0,0.11957503]
[1742498533123,0.011857,84336.0,84326.0,0.011858]
[1742498533412,0.286936,84340.0,84335.0,0.1]
[1742498533598,0.248992,84340.0,84336.0,0.25277503]
[1742498533802,0.237143,84338.0,84336.0,0.25277503]
[1742498534002,0.248994,84339.0,84336.0,0.48992103]
[1742498535120,0.537142,84338.0,84336.0,0.25277503]
[1742498535532,0.537142,84338.0,84336.0,0.48992103]
[1742498535533,0.3,84338.0,84336.0,0.48992103]
[1742498535703,0.537142,84338.0,84336.0,0.25277503]
[1742498536963,0.237143,84337.0,84336.0,0.25277503]
[1742498538056,0.537142,84338.0,84336.0,0.25277503]
[1742498538170,0.537142,84338.0,84336.0,0.51360207]
[1742498538391,0.537142,84338.0,84336.0,0.27645607]
[1742498538634,0.237143,84337.0,84336.0,0.27645607]
[1742498538996,0.537142,84338.0,84336.0,0.27645607]
[1742498539475,0.091055,84348.0,84341.0,0.011856]
[1742498539679,0.3,84339.0,84337.0,0.237143]
[1742498539903,0.537138,84339.0,84338.0,0.11957503]
[1742498540120,0.548994,84339.0,84338.0,0.11957503]
[1742498540755,0.249024,84329.0,84321.0,0.1]
[1742498540936,0.249024,84329.0,84328.0,0.81697503]
[1742498541922,0.311857,84335.0,84330.0,0.1]
[1742498542121,0.3,84332.0,84331.0,0.11957503]
[1742498542325,0.537157,84332.0,84331.0,0.11957503]
[1742498543306,0.549014,84332.0,84331.0,0.11957503]
[1742498547147,0.3,84333.0,84331.0,0.11957503]
[1742498547324,0.237157,84332.0,84331.0,0.11957503]
[1742498547727,0.249014,84332.0,84331.0,0.11991343]
[1742498550218,0.237157,84332.0,84331.0,0.11991343]
[1742498550617,0.249014,84332.0,84331.0,0.11991343]
[1742498552403,0.249014,84332.0,84331.0,0.25303343]
[1742498554666,0.549014,84332.0,84331.0,0.0003384]
[1742498554892,0.596514,84332.0,84331.0,0.0003384]
[1742498555128,0.678314,84332.0,84331.0,4e-07]
[1742498556566,0.68760181,84332.0,84331.0,4e-07]
[1742498557010,0.68860181,84332.0,84331.0,4e-07]
[1742498557250,0.55930181,84332.0,84331.0,4e-07]
[1742498557466,0.55830181,84332.0,84331.0,4e-07]
[1742498557711,0.55930181,84332.0,84331.0,4e-07]
[1742498565429,0.68900181,84332.0,84331.0,4e-07]
[1742498566028,0.69400181,84332.0,84331.0,4e-07]
[1742498566610,0.69300181,84332.0,84331.0,4e-07]
[1742498566827,0.69400181,84332.0,84331.0,4e-07]
[1742498567227,0.54905,84320.0,84304.0,0.1]
[1742498567433,0.54905,84320.0,84310.0,0.02381755]
[1742498567434,0.67265,84320.0,84310.0,0.02381755]
[1742498567671,0.6819245,84320.0,84310.0,0.02381755]
[1742498567981,0.6819245,84320.0,84305.0,0.13316]
[1742498568607,0.6819245,84320.0,84306.0,0.02374866]
[1742498569014,0.6819245,84320.0,84309.0,0.237219]
[1742498569221,0.2583245,84320.0,84318.0,0.13316]
[1742498569429,0.2593245,84320.0,84318.0,0.13316]
[1742498569889,0.5593245,84320.0,84318.0,0.13316]
[1742498570227,0.5583245,84320.0,84318.0,0.13316]
[1742498576266,0.5583245,84320.0,84319.0,0.02369779]
[1742498576914,0.3092745,84320.0,84319.0,0.14327282]
[1742498577353,0.3092745,84320.0,84319.0,0.39232582]
[1742498577553,0.3092745,84320.0,84319.0,0.14327282]
[1742498577771,0.5464655,84320.0,84319.0,0.14327282]
[1742498578148,0.3092745,84320.0,84319.0,0.14527282]
[1742498578294,0.5583245,84320.0,84319.0,0.14527282]
[1742498578493,0.5464655,84320.0,84319.0,0.14527282]
[1742498579190,0.5583245,84320.0,84319.0,0.14527282]
[1742498580804,0.5583245,84320.0,84319.0,0.0023384]
[1742498581006,0.6837245,84320.0,84319.0,0.0023384]
[1742498581776,0.6837245,84320.0,84319.0,0.0013384]
[1742498583032,0.6837245,84320.0,84319.0,0.0003384]
[1742498583225,0.6837245,84320.0,84319.0,0.11991343]
[1742498583226,0.5583245,84320.0,84319.0,0.11991343]
[1742498583450,0.5593245,84320.0,84319.0,0.11991343]
[1742498583655,0.0102745,84320.0,84319.0,0.11991343]
[1742498584186,0.0092745,84320.0,84319.0,0.11991343]
[1742498584392,0.0092745,84320.0,84319.0,0.46896643]
[1742498584611,0.3,84322.0,84321.0,0.237188]
[1742498584870,0.3,84323.0,84321.0,0.35676303]
[1742498585083,0.3,84323.0,84322.0,0.11957503]
[1742498585278,0.3,84323.0,84322.0,0.35676103]
[1742498585838,0.0001692,84332.0,84328.0,0.011858]
[1742498586042,0.0001692,84332.0,84329.0,0.48989503]
[1742498586227,0.0001692,84332.0,84329.0,0.25273503]
[1742498586228,0.237161,84331.0,84329.0,0.25273503]
[1742498586426,0.0001692,84332.0,84330.0,0.237162]
[1742498586697,0.0001692,84332.0,84331.0,0.11957503]
[1742498586872,0.0001692,84332.0,84331.0,0.36859303]
[1742498590215,0.0001692,84332.0,84331.0,0.11957503]
[1742498590394,0.0001692,84332.0,84331.0,0.36859303]
[1742498590597,0.0001692,84332.0,84331.0,0.50175303]
[1742498592277,0.0001692,84332.0,84331.0,0.36859303]
[1742498592424,0.0001692,84332.0,84331.0,0.50171303]
[1742498592828,0.0001692,84332.0,84331.0,0.11957503]
[1742498593029,0.0001692,84332.0,84331.0,0.25269503]
[1742498593030,0.55848236,84332.0,84331.0,0.25269503]
[1742498593565,0.55848236,84332.0,84329.0,0.56432]
[1742498593566,0.011858,84330.0,84329.0,0.56432]
[1742498593770,0.011858,84330.0,84319.0,0.0003384]
[1742498593771,0.237181,84324.0,84319.0,0.0003384]
[1742498593980,0.011859,84324.0,84320.0,0.25269503]
[1742498594199,0.249039,84324.0,84323.0,0.02335808]
[1742498594387,0.249039,84324.0,84323.0,0.14293311]
[1742498594540,0.011858,84326.0,84323.0,0.14293311]
[1742498594541,0.237177,84326.0,84323.0,0.14293311]
[1742498594747,0.012858,84330.0,84324.0,0.11957503]
[1742498594959,0.3,84327.0,84324.0,0.11957503]
[1742498595187,0.3,84327.0,84325.0,0.237176]
[1742498595345,0.3,84327.0,84326.0,0.11957503]
[1742498595541,0.3,84327.0,84326.0,0.36860703]
[1742498596148,0.3,84330.0,84326.0,0.36860703]
[1742498596718,0.3,84330.0,84327.0,0.011858]
[1742498596912,0.3,84328.0,84327.0,0.237171]
[1742498597054,0.3,84328.0,84327.0,0.35674603]
[1742498597460,0.3,84328.0,84327.0,0.11957503]
[1742498597708,0.537169,84328.0,84327.0,0.11957503]
[1742498598233,0.537169,84328.0,84327.0,0.12057503]
[1742498601694,0.54646816,84328.0,84327.0,0.25369503]
[1742498604282,0.30929916,84328.0,84327.0,0.49086603]
[1742498604434,0.30929916,84328.0,84327.0,0.50272403]
[1742498604613,0.3,84328.0,84327.0,0.50272403]
[1742498604816,0.30929916,84328.0,84327.0,0.50272403]
[1742498605821,0.00929916,84328.0,84327.0,0.50272403]
[1742498606027,0.53740122,84330.0,84327.0,0.50272403]
[1742498606226,0.53740122,84330.0,84328.0,0.11957503]
[1742498607711,0.537166,84329.0,84328.0,0.11957503]
[1742498607927,0.549024,84329.0,84328.0,0.25269503]
[1742498608119,0.628324,84329.0,84328.0,0.25269503]
[1742498609357,0.677024,84329.0,84328.0,0.13312]
[1742498609795,0.249032,84326.0,84325.0,0.56428]
[1742498610010,0.249032,84326.0,84325.0,0.81697503]
[1742498611005,0.249032,84326.0,84325.0,0.68485503]
[1742498611200,0.249032,84326.0,84325.0,0.81797503]
[1742498611420,0.249032,84326.0,84325.0,0.81897503]
[1742498612599,0.249032,84326.0,84325.0,0.56628]
[1742498612803,0.249032,84326.0,84325.0,0.6994]
[1742498612804,0.549032,84326.0,84325.0,0.6994]
[1742498613406,0.549032,84326.0,84325.0,0.13512]
[1742498613817,0.627732,84326.0,84325.0,0.001]
[1742498614017,0.627732,84326.0,84324.0,0.0003386]
[1742498614018,0.549035,84325.0,84324.0,0.0003386]
[1742498614220,0.675535,84325.0,84324.0,0.0003386]
[1742498615818,0.677535,84325.0,84324.0,0.0003386]
[1742498616665,0.677535,84325.0,84324.0,6e-07]
[1742498616666,0.69181443,84325.0,84324.0,6e-07]
[1742498618891,0.68681443,84325.0,84324.0,6e-07]
[1742498619771,0.38681443,84325.0,84324.0,6e-07]
[1742498620027,0.55831443,84325.0,84324.0,6e-07]
[1742498620374,0.56131443,84325.0,84324.0,6e-07]
[1742498621834,0.55831443,84325.0,84324.0,6e-07]
[1742498621993,0.56031443,84325.0,84324.0,6e-07]
[1742498622401,0.56031443,84325.0,84324.0,0.1331606]
[1742498622854,0.55831443,84325.0,84324.0,6e-07]
[1742498623207,0.55931443,84325.0,84324.0,6e-07]
[1742498623610,0.64061443,84325.0,84324.0,6e-07]
[1742498624833,0.63961443,84325.0,84324.0,6e-07]
[1742498625033,0.68481443,84325.0,84324.0,6e-07]
[1742498625323,0.68681443,84325.0,84324.0,6e-07]
[1742498626507,0.68481443,84325.0,84324.0,6e-07]
[1742498626870,0.68681443,84325.0,84324.0,6e-07]
[1742498628277,0.68481443,84325.0,84324.0,6e-07]
[1742498628476,0.68681443,84325.0,84324.0,6e-07]
[1742498636815,0.81138946,84325.0,84324.0,6e-07]
[1742498637028,0.549086,84308.0,84307.0,0.69744]
[1742498637238,0.549086,84308.0,84307.0,0.13316]
[1742498637445,0.549086,84308.0,84299.0,0.000338]
[1742498637446,0.549109,84300.0,84299.0,0.000338]
[1742498637739,0.549109,84300.0,84299.0,0.27668012]
[1742498638324,0.55835121,84300.0,84299.0,0.27668012]
[1742498638825,0.57027453,84300.0,84299.0,0.27668012]
[1742498639570,0.32116553,84300.0,84299.0,0.51393012]
[1742498639777,0.32116553,84300.0,84299.0,0.27968012]
[1742498640017,0.55841253,84300.0,84299.0,0.28268012]
[1742498640314,0.32116553,84300.0,84299.0,0.27968012]
[1742498640610,0.32116553,84300.0,84299.0,0.51493012]
[1742498640812,0.32116553,84300.0,84299.0,0.27968012]
[1742498640975,0.32116553,84300.0,84299.0,0.52879212]
[1742498641382,0.32116553,84300.0,84299.0,0.51693012]
[1742498641583,0.32116553,84300.0,84299.0,0.52879212]
[1742498642103,0.011859,84318.0,84313.0,0.237211]
[1742498642305,0.011859,84318.0,84312.0,0.1]
[1742498642306,0.537211,84313.0,84312.0,0.1]
[1742498642460,0.537211,84313.0,84312.0,0.35273503]
[1742498642667,0.54887895,84313.0,84312.0,0.35273503]
[1742498642871,0.56073895,84313.0,84312.0,0.35273503]
[1742498644231,0.56073895,84313.0,84312.0,0.35373503]
[1742498644648,0.56073895,84313.0,84312.0,0.23416]
[1742498645056,0.56073895,84313.0,84312.0,0.101]
[1742498645261,0.56073895,84313.0,84312.0,0.23416]
[1742498646262,0.60893895,84313.0,84312.0,0.001]
[1742498647297,0.249104,84302.0,84301.0,0.1]
[1742498647497,0.549109,84300.0,84299.0,0.000338]
[1742498648060,0.549109,84300.0,84299.0,0.133498]
[1742498649728,0.55802482,84300.0,84299.0,0.133498]
[1742498650165,0.55902482,84300.0,84299.0,0.133498]
[1742498651198,0.55902482,84300.0,84299.0,0.000338]
[1742498651199,0.63552482,84300.0,84299.0,0.000338]
[1742498651664,0.63569412,84300.0,84299.0,0.000338]
[1742498651963,0.55919412,84300.0,84299.0,0.000338]
[1742498657263,0.55919412,84300.0,84299.0,0.133498]
[1742498662705,0.55919412,84300.0,84299.0,0.000338]
[1742498662902,0.55919412,84300.0,84299.0,0.133498]
[1742498669021,0.31008512,84300.0,84299.0,0.25307303]
[1742498669219,0.01008512,84300.0,84299.0,0.57808503]
[1742498669641,0.0011693,84300.0,84299.0,0.59262588]
[1742498670090,0.0001693,84300.0,84299.0,0.59262588]
[1742498670238,0.0001693,84300.0,84299.0,0.59562588]
[1742498670444,0.0001693,84300.0,84299.0,0.59862588]
[1742498670606,0.0001693,84300.0,84299.0,0.59562588]
[1742498670965,0.0001693,84300.0,84299.0,0.59862588]
[1742498671346,0.0001693,84300.0,84299.0,0.64832588]
[1742498671765,0.0001693,84300.0,84299.0,0.64532588]
[1742498672255,0.0001693,84300.0,84299.0,0.64932588]
[1742498680210,0.0001693,84300.0,84299.0,0.63478503]
[1742498681593,0.00909355,84300.0,84299.0,0.58508503]
[1742498681762,0.0001693,84300.0,84299.0,1.14952503]
[1742498684230,0.0001693,84300.0,84299.0,1.07362503]
[1742498684522,0.00909355,84300.0,84299.0,0.94046503]
[1742498684715,0.0001693,84300.0,84299.0,1.07358503]
[1742498685132,0.0001693,84300.0,84299.0,0.69135303]
[1742498685346,0.0001693,84300.0,84299.0,1.07358503]
[1742498686326,0.0001693,84300.0,84299.0,1.07058503]
[1742498686506,0.0001693,84300.0,84299.0,1.06658503]
[1742498686720,0.0001693,84300.0,84299.0,1.06958503]
[1742498687021,0.0001693,84300.0,84299.0,1.06658503]
[1742498687217,0.0001693,84300.0,84299.0,1.06958503]
[1742498688254,0.0001693,84300.0,84299.0,1.07258503]
[1742498688670,0.0001693,84300.0,84299.0,1.06958503]
[1742498688959,0.0001693,84300.0,84299.0,1.07358503]
[1742498699223,0.0001693,84300.0,84299.0,1.14868503]
[1742498700126,0.0001693,84300.0,84299.0,1.16322588]
[1742498701307,0.0001693,84300.0,84299.0,1.20021558]
[1742498701631,0.0001693,84300.0,84299.0,1.07358503]
[1742498701931,0.0001693,84300.0,84299.0,0.92860303]
[1742498702150,0.0001693,84300.0,84299.0,1.07358503]
[1742498705205,0.0001693,84300.0,84299.0,0.94046503]
[1742498705406,0.5492783,84300.0,84299.0,0.571778]
[1742498705609,0.6322783,84300.0,84299.0,0.007338]
[1742498705806,0.6322783,84300.0,84291.0,0.02386784]
[1742498705807,0.63213,84293.0,84292.0,0.12150785]
[1742498706019,0.68093,84293.0,84292.0,0.12150785]
[1742498706446,0.68985246,84293.0,84292.0,0.12150785]
[1742498707282,0.30892246,84293.0,84292.0,0.24108288]
[1742498707690,0.30892246,84293.0,84292.0,0.47835288]
[1742498708110,0.30892246,84293.0,84292.0,0.49021588]
[1742498708339,0.00892246,84293.0,84292.0,0.49021588]
[1742498708692,0.2374173,84300.0,84299.0,0.1]
[1742498708889,0.2374173,84300.0,84299.0,0.46868703]
[1742498708890,0.0001693,84300.0,84299.0,0.46868703]
[1742498709123,0.00909176,84300.0,84299.0,0.46868703]
[1742498709314,0.0001693,84300.0,84299.0,0.46868703]
[1742498710579,0.0001693,84300.0,84299.0,0.47168703]
[1742498710912,0.0001693,84300.0,84299.0,1.03612703]
[1742498711701,0.0001693,84300.0,84299.0,1.03912703]
[1742498712344,0.00908134,84300.0,84299.0,1.03912703]
[1742498712659,0.0001693,84300.0,84299.0,1.03912703]
[1742498714358,0.0001693,84300.0,84299.0,0.93912703]
[1742498714542,0.00908134,84300.0,84299.0,0.79001503]
[1742498714769,0.55819034,84300.0,84299.0,0.79001503]
[1742498714981,0.60529034,84300.0,84299.0,0.70356]
[1742498715702,0.60529034,84300.0,84299.0,0.70056]
[1742498716114,0.60529034,84300.0,84299.0,0.70156]
[1742498716543,0.60529034,84300.0,84299.0,0.69856]
[1742498717355,0.60529034,84300.0,84299.0,0.69756]
[1742498717898,0.60529034,84300.0,84299.0,0.69856]
[1742498718301,0.60529034,84300.0,84299.0,0.13412]
[1742498718469,0.60529034,84300.0,84299.0,0.13312]
[1742498718875,0.60629034,84300.0,84299.0,0.13312]
[1742498720016,0.60729034,84300.0,84299.0,0.13312]
[1742498720374,0.60529034,84300.0,84299.0,0.13312]
[1742498720572,0.60729034,84300.0,84299.0,0.13312]
[1742498720819,0.60929034,84300.0,84299.0,0.13312]
[1742498721997,0.54913,84293.0,84292.0,0.0003384]
[1742498722169,0.54913,84293.0,84292.0,0.1334584]
[1742498722407,0.55802352,84293.0,84292.0,0.1334584]
[1742498724321,0.64052352,84293.0,84292.0,0.0003384]
[1742498728546,0.68742352,84293.0,84292.0,0.0003384]
[1742498730180,0.68942352,84293.0,84292.0,0.0003384]
[1742498730602,0.011864,84282.0,84281.0,0.56448]
[1742498730801,0.549192,84272.0,84269.0,0.1]
[1742498731002,0.549192,84272.0,84271.0,0.13359466]
[1742498731212,0.55806406,84272.0,84271.0,0.13359466]
[1742498731533,0.54619806,84272.0,84271.0,0.25316969]
[1742498731736,0.30887206,84272.0,84271.0,0.25316969]
[1742498731936,0.00887206,84272.0,84271.0,0.49091451]
[1742498732094,0.00887206,84272.0,84271.0,0.50278051]
[1742498732294,0.311865,84276.0,84272.0,0.237324]
[1742498732515,0.011865,84276.0,84273.0,0.11957503]
[1742498732719,0.311865,84277.0,84273.0,0.11957503]
[1742498732720,0.3,84277.0,84276.0,0.237315]
[1742498732874,0.3,84277.0,84276.0,0.36875503]
[1742498733330,0.3,84277.0,84276.0,0.11957503]
[1742498733735,0.3,84277.0,84276.0,0.35689003]
[1742498734222,0.3,84277.0,84276.0,0.49105003]
[1742498734725,0.53731,84278.0,84277.0,0.1]
[1742498734933,0.549175,84278.0,84277.0,0.21957503]
[1742498735814,0.249177,84277.0,84276.0,0.003]
[1742498736269,0.249177,84277.0,84276.0,0.002]
[1742498736680,0.249187,84274.0,84273.0,0.1334984]
[1742498736872,0.549187,84274.0,84273.0,0.1334984]
[1742498737095,0.549187,84274.0,84273.0,0.0003384]
[1742498737215,0.55805906,84274.0,84273.0,0.0003384]
[1742498737418,0.011867,84261.0,84259.0,0.000338]
[1742498737668,0.549224,84261.0,84259.0,0.000338]
[1742498737871,0.679724,84261.0,84259.0,0.000338]
[1742498738070,0.68859606,84261.0,84259.0,0.000338]
[1742498738593,0.55809606,84261.0,84259.0,0.000338]
[1742498738810,0.55909606,84261.0,84259.0,0.000338]
[1742498739021,0.57105941,84261.0,84259.0,0.000338]
[1742498739991,0.57205941,84261.0,84259.0,0.000338]
[1742498740187,0.57205941,84261.0,84259.0,0.100338]
[1742498741319,0.56019241,84261.0,84260.0,0.11991303]
[1742498742239,0.57105941,84261.0,84260.0,0.11991303]
[1742498742451,0.57005941,84261.0,84260.0,0.11991303]
[1742498742920,0.57005941,84261.0,84260.0,0.000338]
[1742498743345,0.57005941,84261.0,84260.0,0.133498]
[1742498744188,0.65285941,84261.0,84260.0,0.133498]
[1742498744399,0.65285941,84261.0,84259.0,1e-06]
[1742498744400,0.549228,84260.0,84259.0,1e-06]
[1742498744573,0.249266,84247.0,84244.0,0.13316]
[1742498744902,0.549266,84247.0,84244.0,0.13316]
[1742498745128,0.55813806,84247.0,84244.0,0.13316]
[1742498746086,0.55813806,84247.0,84246.0,0.00046289]
[1742498755144,0.64043806,84247.0,84246.0,0.00046289]
[1742498756368,0.64343806,84247.0,84246.0,0.00046289]
[1742498756570,0.64043806,84247.0,84246.0,0.00046289]
[1742498756972,0.64143806,84247.0,84246.0,0.00046289]
[1742498757390,0.69263806,84247.0,84246.0,0.00046289]
[1742498757592,0.549286,84240.0,84239.0,0.00081344]
[1742498757796,0.5581166,84240.0,84239.0,0.00091676]
[1742498758980,0.5601166,84240.0,84239.0,0.00091676]
[1742498759388,0.5621166,84240.0,84239.0,0.00091676]
[1742498760556,0.57122157,84240.0,84239.0,0.00091676]
[1742498764256,0.249301,84235.0,84234.0,0.000338]
[1742498764461,0.549301,84235.0,84234.0,0.00046273]
[1742498764771,0.55811345,84235.0,84234.0,0.00046273]
[1742498767244,0.64021345,84235.0,84234.0,0.00046273]
[1742498768002,0.64221345,84235.0,84234.0,0.00046273]
[1742498769358,0.31281245,84235.0,84234.0,0.25323776]
[1742498769541,0.26211345,84235.0,84234.0,0.25323776]
[1742498769742,0.55024245,84235.0,84234.0,0.25323776]
[1742498769980,0.55024245,84235.0,84234.0,0.50254176]
[1742498769981,0.01281245,84235.0,84234.0,0.50254176]
[1742498770154,0.01281245,84235.0,84234.0,0.25323776]
[1742498770310,0.304,84235.0,84234.0,0.25323776]
[1742498770511,0.30881245,84235.0,84234.0,0.49067076]
[1742498770711,0.30881245,84235.0,84234.0,0.50254176]
[1742498770913,0.00881245,84235.0,84234.0,0.50454176]
[1742498771271,0.3,84238.0,84237.0,0.1]
[1742498771455,0.3,84238.0,84237.0,0.46887103]
[1742498771678,0.30881245,84238.0,84237.0,0.46887103]
[1742498771881,0.30881245,84238.0,84237.0,0.21957503]
[1742498772397,0.00881245,84238.0,84237.0,0.21957503]
[1742498772591,0.237422,84238.0,84237.0,0.21957503]
[1742498772794,0.24623445,84238.0,84237.0,0.21957503]
[1742498772954,0.24623445,84238.0,84237.0,0.22057503]
[1742498773350,0.25810545,84238.0,84237.0,0.12157503]
[1742498773610,0.25810545,84238.0,84237.0,0.22157503]
[1742498773806,0.25810545,84238.0,84237.0,0.35477503]
[1742498774461,0.00881245,84238.0,84237.0,0.35477503]
[1742498774664,0.54623445,84238.0,84237.0,0.35477503]
[1742498774952,0.549293,84238.0,84237.0,0.35477503]
[1742498775148,0.30881245,84238.0,84237.0,0.35477503]
[1742498775708,0.54623445,84238.0,84237.0,0.35477503]
[1742498776228,0.54623445,84238.0,84237.0,0.22157503]
[1742498776431,0.54623445,84238.0,84237.0,0.35477503]
[1742498776432,0.55810545,84238.0,84237.0,0.35477503]
[1742498777473,0.55810545,84238.0,84237.0,0.22157503]
[1742498777678,0.55810545,84238.0,84237.0,0.35477503]
[1742498777892,0.55810545,84238.0,84237.0,0.002]
[1742498778056,0.55810545,84238.0,84237.0,0.1352]
[1742498778843,0.55810545,84238.0,84237.0,0.1342]
[1742498779044,0.56010545,84238.0,84237.0,0.1342]
[1742498779673,0.56010545,84238.0,84237.0,0.1332]
[1742498780038,0.56210545,84238.0,84237.0,0.25277503]
[1742498780442,0.31281245,84238.0,84237.0,0.21957503]
[1742498780675,0.55023445,84238.0,84237.0,0.35277503]
[1742498781004,0.56010545,84238.0,84237.0,0.35277503]
[1742498781211,0.56110545,84238.0,84237.0,0.35277503]